[Event "Late-Titled-Tuesday-Blitz-March-12-2024"]
[Site "Chess.com"]
[Date "2024.03.12"]
[Round "8"]
[White "AlexPapasimakopoulos"]
[Black "rdarruda"]
[Result "1-0"]
[WhiteElo "2693"]
[BlackElo "2553"]
[TimeControl "180+1"]
[EndTime "15:24:07 PDT"]
[Termination "AlexPapasimakopoulos won by resignation"]

1. d4 {[%clk 0:03:00.9]} 1... Nf6 {[%clk 0:02:13.5]} 2. c4 {[%clk 0:03:00.6]}
2... e5 {[%clk 0:02:13.3]} 3. dxe5 {[%clk 0:03:00.6]} 3... Ne4 {[%clk 0:02:14]}
4. a3 {[%clk 0:03:00.3]} 4... Nc6 {[%clk 0:02:14.4]} 5. Nf3 {[%clk 0:02:50.5]}
5... d6 {[%clk 0:02:14.2]} 6. Qc2 {[%clk 0:02:50.9]} 6... d5 {[%clk 0:02:13.6]}
7. cxd5 {[%clk 0:02:48.3]} 7... Qxd5 {[%clk 0:02:14.5]} 8. Nc3 {[%clk
0:02:47.4]} 8... Nxc3 {[%clk 0:02:13.3]} 9. Qxc3 {[%clk 0:02:48.3]} 9... Bg4
{[%clk 0:02:12.9]} 10. Bf4 {[%clk 0:02:43.9]} 10... O-O-O {[%clk 0:02:12.6]} 11.
h3 {[%clk 0:02:38.2]} 11... Be6 {[%clk 0:02:10.3]} 12. e3 {[%clk 0:02:33.2]}
12... h6 {[%clk 0:02:10.1]} 13. Be2 {[%clk 0:02:23.5]} 13... g5 {[%clk 0:02:10]}
14. Bg3 {[%clk 0:02:23.4]} 14... Bg7 {[%clk 0:02:08.8]} 15. Rd1 {[%clk 0:02:18]}
15... Qb3 {[%clk 0:02:08.8]} 16. Qxb3 {[%clk 0:02:00.4]} 16... Bxb3 {[%clk
0:02:09.7]} 17. Rxd8+ {[%clk 0:02:00.6]} 17... Rxd8 {[%clk 0:02:08.7]} 18. Nd2
{[%clk 0:02:00.3]} 18... Bd5 {[%clk 0:02:00.4]} 19. Bc4 {[%clk 0:01:57.6]} 19...
Nxe5 {[%clk 0:01:57.6]} 20. Bxd5 {[%clk 0:01:53.8]} 20... Rxd5 {[%clk
0:01:58.5]} 21. Bxe5 {[%clk 0:01:49]} 21... Bxe5 {[%clk 0:01:57.4]} 22. Nc4
{[%clk 0:01:48.3]} 22... Rc5 {[%clk 0:01:50.3]} 23. Nxe5 {[%clk 0:01:42.5]}
23... Rc1+ {[%clk 0:01:50]} 24. Ke2 {[%clk 0:01:40.5]} 24... Rxh1 {[%clk
0:01:50.9]} 25. Nxf7 {[%clk 0:01:40.6]} 25... Rb1 {[%clk 0:01:49.4]} 26. b4
{[%clk 0:01:40.7]} 26... Rb3 {[%clk 0:01:43.2]} 27. Nxh6 {[%clk 0:01:41.3]}
27... Rxa3 {[%clk 0:01:43.3]} 28. Nf7 {[%clk 0:01:41.1]} 28... a5 {[%clk
0:01:41.8]} 29. bxa5 {[%clk 0:01:40.9]} 29... Rxa5 {[%clk 0:01:42.7]} 30. g4
{[%clk 0:01:38.4]} 30... Rc5 {[%clk 0:01:38.4]} 31. f4 {[%clk 0:01:38]} 31...
gxf4 {[%clk 0:01:38.4]} 32. exf4 {[%clk 0:01:38.9]} 32... Kd7 {[%clk 0:01:38.6]}
33. h4 {[%clk 0:01:37.2]} 33... Ke7 {[%clk 0:01:38.6]} 34. Ne5 {[%clk
0:01:35.6]} 34... b5 {[%clk 0:01:38.2]} 35. h5 {[%clk 0:01:34.5]} 35... b4
{[%clk 0:01:32.3]} 36. h6 {[%clk 0:01:34.9]} 36... Kf8 {[%clk 0:01:30.1]} 37.
Nd7+ {[%clk 0:01:34]} 37... Kg8 {[%clk 0:01:28.9]} 38. Nxc5 {[%clk 0:01:34.9]}
1-0

[Event "Late-Titled-Tuesday-Blitz-March-12-2024"]
[Site "Chess.com"]
[Date "2024.03.12"]
[Round "8"]
[White "AlejandroArias"]
[Black "expii"]
[Result "1-0"]
[WhiteElo "2371"]
[BlackElo "2185"]
[TimeControl "180+1"]
[EndTime "15:24:11 PDT"]
[Termination "AlejandroArias won by checkmate"]

1. e4 {[%clk 0:03:00.9]} 1... c5 {[%clk 0:02:59.3]} 2. Nf3 {[%clk 0:02:57.6]}
2... d6 {[%clk 0:02:57.9]} 3. d4 {[%clk 0:02:55.5]} 3... cxd4 {[%clk 0:02:58.8]}
4. Nxd4 {[%clk 0:02:56]} 4... Nf6 {[%clk 0:02:59.2]} 5. Nc3 {[%clk 0:02:55.8]}
5... g6 {[%clk 0:02:59.4]} 6. Be3 {[%clk 0:02:52.7]} 6... Bg7 {[%clk 0:02:59.3]}
7. Qd2 {[%clk 0:02:51.5]} 7... O-O {[%clk 0:02:58.4]} 8. f3 {[%clk 0:02:50.8]}
8... Nc6 {[%clk 0:02:55.6]} 9. Bc4 {[%clk 0:02:48.4]} 9... Ne5 {[%clk
0:02:52.2]} 10. Bb3 {[%clk 0:02:46]} 10... Bd7 {[%clk 0:02:50.3]} 11. O-O-O
{[%clk 0:02:43.5]} 11... Rc8 {[%clk 0:02:47.5]} 12. Kb1 {[%clk 0:02:42.7]} 12...
a6 {[%clk 0:02:45.1]} 13. Bh6 {[%clk 0:02:33.9]} 13... b5 {[%clk 0:02:18.4]} 14.
h4 {[%clk 0:02:27]} 14... a5 {[%clk 0:02:10.9]} 15. Ndxb5 {[%clk 0:02:07.4]}
15... Bxb5 {[%clk 0:01:51]} 16. Nxb5 {[%clk 0:02:06.6]} 16... Rb8 {[%clk
0:01:41.1]} 17. a4 {[%clk 0:02:00.9]} 17... Rxb5 {[%clk 0:01:13.9]} 18. axb5
{[%clk 0:01:59.9]} 18... Qb6 {[%clk 0:01:14.8]} 19. h5 {[%clk 0:01:48.3]} 19...
Qxb5 {[%clk 0:01:12]} 20. hxg6 {[%clk 0:01:44.1]} 20... Nxg6 {[%clk 0:01:02.7]}
21. Bxg7 {[%clk 0:01:33.6]} 21... Kxg7 {[%clk 0:01:01.4]} 22. Qh6+ {[%clk
0:01:33.4]} 22... Kg8 {[%clk 0:01:01]} 23. Rd5 {[%clk 0:01:33.3]} 23... Nxd5
{[%clk 0:00:57.4]} 24. Qxh7# {[%clk 0:01:32.5]} 1-0

[Event "Late-Titled-Tuesday-Blitz-March-12-2024"]
[Site "Chess.com"]
[Date "2024.03.12"]
[Round "8"]
[White "GHANDEEVAM2003"]
[Black "SchmakAttack"]
[Result "0-1"]
[WhiteElo "3067"]
[BlackElo "2846"]
[TimeControl "180+1"]
[EndTime "15:24:15 PDT"]
[Termination "SchmakAttack won by resignation"]

1. a3 {[%clk 0:03:00.9]} 1... a6 {[%clk 0:02:56.9]} 2. Nf3 {[%clk 0:02:59.7]}
2... g6 {[%clk 0:02:53.5]} 3. d4 {[%clk 0:02:57.4]} 3... Bg7 {[%clk 0:02:53.9]}
4. e4 {[%clk 0:02:56.8]} 4... d6 {[%clk 0:02:53.8]} 5. Bc4 {[%clk 0:02:56.5]}
5... Nf6 {[%clk 0:02:48.8]} 6. Qe2 {[%clk 0:02:56.7]} 6... O-O {[%clk
0:02:44.5]} 7. e5 {[%clk 0:02:55.7]} 7... dxe5 {[%clk 0:02:43]} 8. dxe5 {[%clk
0:02:56.6]} 8... Nd5 {[%clk 0:02:43.4]} 9. h3 {[%clk 0:02:52.7]} 9... b5 {[%clk
0:02:35.9]} 10. Ba2 {[%clk 0:02:51.7]} 10... Bb7 {[%clk 0:02:25.5]} 11. O-O
{[%clk 0:02:50.9]} 11... c5 {[%clk 0:02:25.7]} 12. c4 {[%clk 0:02:46.4]} 12...
bxc4 {[%clk 0:02:24]} 13. Bxc4 {[%clk 0:02:47.3]} 13... Qc7 {[%clk 0:02:11.5]}
14. Rd1 {[%clk 0:02:42.3]} 14... Nb6 {[%clk 0:02:09.5]} 15. Ba2 {[%clk
0:02:39.2]} 15... Nc6 {[%clk 0:02:03.9]} 16. e6 {[%clk 0:02:36.2]} 16... f5
{[%clk 0:02:02.7]} 17. Be3 {[%clk 0:02:33.4]} 17... Ne5 {[%clk 0:01:46.8]} 18.
Bf4 {[%clk 0:02:18.4]} 18... Nxf3+ {[%clk 0:01:44.3]} 19. Qxf3 {[%clk
0:02:17.7]} 19... Bxf3 {[%clk 0:01:44.9]} 20. Bxc7 {[%clk 0:02:16.9]} 20... Bxd1
{[%clk 0:01:45.5]} 21. Bxb6 {[%clk 0:02:16.5]} 21... Bxb2 {[%clk 0:01:45.4]} 22.
Nc3 {[%clk 0:02:13.1]} 22... Bxa1 {[%clk 0:01:37.5]} 23. Nxd1 {[%clk 0:02:13.6]}
23... Bd4 {[%clk 0:01:38]} 24. Ne3 {[%clk 0:02:12.1]} 24... Bxe3 {[%clk
0:01:21.5]} 25. fxe3 {[%clk 0:02:13]} 25... Rfc8 {[%clk 0:01:22.2]} 26. Bc4
{[%clk 0:02:11.9]} 26... a5 {[%clk 0:01:15.8]} 27. a4 {[%clk 0:02:06.9]} 27...
Rc6 {[%clk 0:01:06.4]} 28. Bd5 {[%clk 0:02:06.3]} 28... Rxb6 {[%clk 0:01:06.9]}
29. Bxa8 {[%clk 0:02:07.2]} 29... Kg7 {[%clk 0:01:02.4]} 30. Kf2 {[%clk
0:02:07]} 30... Rxe6 {[%clk 0:01:01.3]} 31. Ke2 {[%clk 0:02:07.1]} 31... Rd6
{[%clk 0:01:01.9]} 32. e4 {[%clk 0:02:04.1]} 32... Kf6 {[%clk 0:00:57.8]} 33.
Ke3 {[%clk 0:02:01.2]} 33... Ke5 {[%clk 0:00:56.6]} 0-1

[Event "Late-Titled-Tuesday-Blitz-March-12-2024"]
[Site "Chess.com"]
[Date "2024.03.12"]
[Round "8"]
[White "Moultino06"]
[Black "Rud_Makarian"]
[Result "0-1"]
[WhiteElo "2817"]
[BlackElo "3043"]
[TimeControl "180+1"]
[EndTime "15:24:21 PDT"]
[Termination "Rud_Makarian won by resignation"]

1. e4 {[%clk 0:02:46.4]} 1... c5 {[%clk 0:02:59.7]} 2. Nf3 {[%clk 0:02:46]} 2...
e6 {[%clk 0:03:00]} 3. c3 {[%clk 0:02:44.5]} 3... d5 {[%clk 0:02:59.9]} 4. e5
{[%clk 0:02:44.3]} 4... d4 {[%clk 0:02:59.6]} 5. g3 {[%clk 0:02:43.5]} 5... Nc6
{[%clk 0:02:57.6]} 6. d3 {[%clk 0:02:40.8]} 6... dxc3 {[%clk 0:02:54]} 7. bxc3
{[%clk 0:02:38]} 7... b6 {[%clk 0:02:51.7]} 8. Bg2 {[%clk 0:02:29.1]} 8... Qd7
{[%clk 0:02:48.3]} 9. O-O {[%clk 0:02:24.1]} 9... Ba6 {[%clk 0:02:48.3]} 10. Qa4
{[%clk 0:02:14.7]} 10... Bb7 {[%clk 0:02:48.6]} 11. Na3 {[%clk 0:02:10.1]} 11...
Nge7 {[%clk 0:02:46.8]} 12. Nc4 {[%clk 0:01:55.2]} 12... Nd5 {[%clk 0:02:42.1]}
13. Qc2 {[%clk 0:01:52.3]} 13... Be7 {[%clk 0:02:41]} 14. h4 {[%clk 0:01:30.5]}
14... h6 {[%clk 0:02:37.2]} 15. Nfd2 {[%clk 0:01:25.1]} 15... Rd8 {[%clk
0:02:30]} 16. Ne4 {[%clk 0:01:24.3]} 16... O-O {[%clk 0:02:23.9]} 17. Ned6
{[%clk 0:01:11.8]} 17... Bxd6 {[%clk 0:02:18.1]} 18. Nxd6 {[%clk 0:01:12.7]}
18... Nxe5 {[%clk 0:02:12.1]} 19. Nxb7 {[%clk 0:01:11.2]} 19... Qxb7 {[%clk
0:02:13]} 20. c4 {[%clk 0:01:02.9]} 20... Nb4 {[%clk 0:02:13.2]} 21. Qc3 {[%clk
0:01:00.9]} 21... Qc7 {[%clk 0:02:08.1]} 22. Bf4 {[%clk 0:01:00.3]} 22... Nbxd3
{[%clk 0:02:03.6]} 23. Be3 {[%clk 0:00:53.5]} 23... Ng4 {[%clk 0:01:59.2]} 24.
Bd2 {[%clk 0:00:50.5]} 24... Qe5 {[%clk 0:01:57.5]} 25. Qa3 {[%clk 0:00:47.3]}
25... Ndxf2 {[%clk 0:01:47.5]} 26. Bf4 {[%clk 0:00:46.3]} 26... Qd4 {[%clk
0:01:46.2]} 0-1

[Event "Late-Titled-Tuesday-Blitz-March-12-2024"]
[Site "Chess.com"]
[Date "2024.03.12"]
[Round "8"]
[White "RantomOpening"]
[Black "baki83"]
[Result "0-1"]
[WhiteElo "2581"]
[BlackElo "2834"]
[TimeControl "180+1"]
[EndTime "15:24:46 PDT"]
[Termination "baki83 won by resignation"]

1. e4 {[%clk 0:02:47.8]} 1... c5 {[%clk 0:02:58.6]} 2. c3 {[%clk 0:02:47.3]}
2... e5 {[%clk 0:02:57.2]} 3. Nf3 {[%clk 0:02:46.6]} 3... Nc6 {[%clk 0:02:56.8]}
4. d4 {[%clk 0:02:44.8]} 4... cxd4 {[%clk 0:02:56.6]} 5. cxd4 {[%clk 0:02:45.7]}
5... exd4 {[%clk 0:02:57]} 6. Nxd4 {[%clk 0:02:46.6]} 6... Nf6 {[%clk
0:02:56.6]} 7. Nxc6 {[%clk 0:02:46.1]} 7... bxc6 {[%clk 0:02:54.9]} 8. Nc3
{[%clk 0:02:45.3]} 8... Bb4 {[%clk 0:02:54.3]} 9. Bd3 {[%clk 0:02:45.1]} 9...
O-O {[%clk 0:02:53.7]} 10. O-O {[%clk 0:02:44.6]} 10... Re8 {[%clk 0:02:53.8]}
11. Re1 {[%clk 0:02:40.8]} 11... d6 {[%clk 0:02:52.9]} 12. Bd2 {[%clk 0:02:39]}
12... h6 {[%clk 0:02:51.3]} 13. Qc2 {[%clk 0:02:39]} 13... Ng4 {[%clk
0:02:39.9]} 14. a3 {[%clk 0:02:35.6]} 14... Bc5 {[%clk 0:02:38.7]} 15. Rf1
{[%clk 0:02:25]} 15... Qh4 {[%clk 0:02:33.4]} 16. Bf4 {[%clk 0:02:24.8]} 16...
Nxf2 {[%clk 0:02:27.6]} 17. g3 {[%clk 0:01:24]} 17... Nxd3+ {[%clk 0:01:42.9]}
18. Kh1 {[%clk 0:01:12.3]} 18... Qh5 {[%clk 0:01:43.2]} 19. Qxd3 {[%clk
0:01:09.6]} 19... Bh3 {[%clk 0:01:42.6]} 20. Rfe1 {[%clk 0:01:01.2]} 20... Bg4
{[%clk 0:01:35.3]} 21. Rf1 {[%clk 0:00:54.7]} 21... Rad8 {[%clk 0:01:33.3]} 22.
Rae1 {[%clk 0:00:44.6]} 22... Bh3 {[%clk 0:01:31.4]} 23. Rf3 {[%clk 0:00:40.1]}
23... d5 {[%clk 0:01:28.9]} 24. e5 {[%clk 0:00:37]} 24... Bf5 {[%clk 0:01:24.1]}
25. Qd2 {[%clk 0:00:35.2]} 25... Qxf3+ {[%clk 0:01:23.2]} 0-1

[Event "Late-Titled-Tuesday-Blitz-March-12-2024"]
[Site "Chess.com"]
[Date "2024.03.12"]
[Round "8"]
[White "PapaieDudu"]
[Black "Viktor_Poddubnyi"]
[Result "0-1"]
[WhiteElo "2412"]
[BlackElo "2288"]
[TimeControl "180+1"]
[EndTime "15:24:47 PDT"]
[Termination "Viktor_Poddubnyi won by resignation"]

1. Nf3 {[%clk 0:02:57.1]} 1... g6 {[%clk 0:03:00.1]} 2. d4 {[%clk 0:02:55.9]}
2... Bg7 {[%clk 0:03:00.6]} 3. c4 {[%clk 0:02:56.6]} 3... d6 {[%clk 0:03:00.8]}
4. Nc3 {[%clk 0:02:57.3]} 4... Nc6 {[%clk 0:02:52.1]} 5. e3 {[%clk 0:02:57.3]}
5... Nf6 {[%clk 0:02:51.4]} 6. Be2 {[%clk 0:02:57.8]} 6... O-O {[%clk
0:02:51.4]} 7. O-O {[%clk 0:02:58.7]} 7... Nd7 {[%clk 0:02:50.8]} 8. d5 {[%clk
0:02:57.3]} 8... Nce5 {[%clk 0:02:50.2]} 9. Nd4 {[%clk 0:02:58]} 9... c5 {[%clk
0:02:46.4]} 10. dxc6 {[%clk 0:02:55.8]} 10... Nxc6 {[%clk 0:02:46.1]} 11. Nd5
{[%clk 0:02:53.7]} 11... e6 {[%clk 0:02:40.7]} 12. Nxc6 {[%clk 0:02:51.5]} 12...
bxc6 {[%clk 0:02:38.7]} 13. Nb4 {[%clk 0:02:49.7]} 13... Qc7 {[%clk 0:02:29.7]}
14. Rb1 {[%clk 0:02:48.5]} 14... a5 {[%clk 0:02:27.3]} 15. Nc2 {[%clk
0:02:45.3]} 15... a4 {[%clk 0:02:09.9]} 16. b3 {[%clk 0:02:45.4]} 16... axb3
{[%clk 0:02:08.5]} 17. axb3 {[%clk 0:02:46.3]} 17... Nc5 {[%clk 0:02:05.7]} 18.
Nd4 {[%clk 0:02:45.2]} 18... Bd7 {[%clk 0:02:01.2]} 19. Bb2 {[%clk 0:02:44.9]}
19... Rfb8 {[%clk 0:01:59.2]} 20. Bc3 {[%clk 0:02:40.9]} 20... Rb7 {[%clk
0:01:40.4]} 21. Bf3 {[%clk 0:02:40.6]} 21... Rab8 {[%clk 0:01:36.3]} 22. b4
{[%clk 0:02:41.1]} 22... Na4 {[%clk 0:01:28.5]} 23. b5 {[%clk 0:02:41.8]} 23...
Nxc3 {[%clk 0:01:27.5]} 24. Qd3 {[%clk 0:02:39.1]} 24... Nxb1 {[%clk 0:01:26.8]}
25. Rxb1 {[%clk 0:02:40]} 25... Rb6 {[%clk 0:01:15.9]} 26. h4 {[%clk 0:02:40.1]}
26... Bxd4 {[%clk 0:01:12.5]} 27. Qxd4 {[%clk 0:02:35.5]} 27... cxb5 {[%clk
0:01:12.8]} 28. Rc1 {[%clk 0:02:33]} 28... bxc4 {[%clk 0:01:01.7]} 29. h5 {[%clk
0:02:33.5]} 29... e5 {[%clk 0:00:57.2]} 30. Qh4 {[%clk 0:02:33.7]} 30... Rb1
{[%clk 0:00:51.9]} 31. Rxb1 {[%clk 0:02:32.7]} 31... Rxb1+ {[%clk 0:00:52.8]}
32. Kh2 {[%clk 0:02:33.6]} 32... Rb8 {[%clk 0:00:37.6]} 33. Qf6 {[%clk
0:02:31.3]} 33... Qd8 {[%clk 0:00:20.4]} 34. Qxd6 {[%clk 0:02:31.4]} 34... gxh5
{[%clk 0:00:17.3]} 35. Kg1 {[%clk 0:02:32.3]} 35... Be6 {[%clk 0:00:14.6]} 36.
Qxe5 {[%clk 0:02:31.5]} 36... Rb1+ {[%clk 0:00:12.9]} 37. Kh2 {[%clk 0:02:31.4]}
37... Qb8 {[%clk 0:00:13.3]} 38. Qxb8+ {[%clk 0:02:27.2]} 38... Rxb8 {[%clk
0:00:14.2]} 39. Bxh5 {[%clk 0:02:26.9]} 39... c3 {[%clk 0:00:13.9]} 40. Bd1
{[%clk 0:02:25]} 40... Bb3 {[%clk 0:00:13.6]} 41. Bxb3 {[%clk 0:02:25]} 41...
Rxb3 {[%clk 0:00:14.5]} 0-1

[Event "Late-Titled-Tuesday-Blitz-March-12-2024"]
[Site "Chess.com"]
[Date "2024.03.12"]
[Round "8"]
[White "Practical-Play"]
[Black "ukchessbomber"]
[Result "1/2-1/2"]
[WhiteElo "2476"]
[BlackElo "2632"]
[TimeControl "180+1"]
[EndTime "15:24:49 PDT"]
[Termination "Game drawn by repetition"]

1. e4 {[%clk 0:03:00.9]} 1... a6 {[%clk 0:03:00.1]} 2. d4 {[%clk 0:02:56.2]}
2... b5 {[%clk 0:02:59]} 3. a4 {[%clk 0:02:51.7]} 3... b4 {[%clk 0:02:58.8]} 4.
Nf3 {[%clk 0:02:50.8]} 4... Bb7 {[%clk 0:02:59.7]} 5. Bd3 {[%clk 0:02:50]} 5...
e6 {[%clk 0:03:00.6]} 6. O-O {[%clk 0:02:48.5]} 6... g6 {[%clk 0:02:59.6]} 7. c3
{[%clk 0:02:48]} 7... Bg7 {[%clk 0:02:59.1]} 8. cxb4 {[%clk 0:02:40]} 8... Nf6
{[%clk 0:02:58.9]} 9. Nc3 {[%clk 0:02:33.3]} 9... O-O {[%clk 0:02:58.8]} 10. e5
{[%clk 0:02:28.6]} 10... Nd5 {[%clk 0:02:58.4]} 11. Bg5 {[%clk 0:02:26.3]} 11...
f6 {[%clk 0:02:58.7]} 12. exf6 {[%clk 0:02:13.4]} 12... Bxf6 {[%clk 0:02:59.6]}
13. Bxf6 {[%clk 0:01:55.4]} 13... Qxf6 {[%clk 0:02:58.6]} 14. Ne5 {[%clk
0:01:39.2]} 14... d6 {[%clk 0:02:57.3]} 15. Ne4 {[%clk 0:01:34.5]} 15... Qg7
{[%clk 0:02:56.4]} 16. Nf3 {[%clk 0:01:27.4]} 16... Nxb4 {[%clk 0:02:56.1]} 17.
Bb1 {[%clk 0:01:25.6]} 17... Bd5 {[%clk 0:02:54.3]} 18. Re1 {[%clk 0:01:22.5]}
18... N8c6 {[%clk 0:02:53.8]} 19. Neg5 {[%clk 0:01:20.5]} 19... Rae8 {[%clk
0:02:52.7]} 20. Be4 {[%clk 0:01:16.6]} 20... Qf6 {[%clk 0:02:45.1]} 21. Rc1
{[%clk 0:01:09.3]} 21... h6 {[%clk 0:02:25.2]} 22. Nh3 {[%clk 0:00:59.2]} 22...
Bxe4 {[%clk 0:02:25.3]} 23. Rxe4 {[%clk 0:00:59.3]} 23... Qf5 {[%clk 0:02:26.2]}
24. Qe2 {[%clk 0:00:49.9]} 24... g5 {[%clk 0:02:26.3]} 25. Re1 {[%clk
0:00:41.4]} 25... Nd5 {[%clk 0:02:26.1]} 26. Rxe6 {[%clk 0:00:32.6]} 26... Rxe6
{[%clk 0:02:26.1]} 27. Qxe6+ {[%clk 0:00:32.5]} 27... Qxe6 {[%clk 0:02:27]} 28.
Rxe6 {[%clk 0:00:32.8]} 28... g4 {[%clk 0:02:27.4]} 29. Rg6+ {[%clk 0:00:32.5]}
29... Kf7 {[%clk 0:02:24.6]} 30. Rxg4 {[%clk 0:00:33.4]} 30... Rb8 {[%clk
0:02:24]} 31. Nf4 {[%clk 0:00:32]} 31... Rxb2 {[%clk 0:02:22.2]} 32. h4 {[%clk
0:00:24.9]} 32... Nf6 {[%clk 0:02:22.2]} 33. Rg6 {[%clk 0:00:19.3]} 33... Nd5
{[%clk 0:02:19.7]} 34. Rg4 {[%clk 0:00:19.6]} 34... Nf6 {[%clk 0:02:19.4]} 35.
Rg6 {[%clk 0:00:19.7]} 35... Nd5 {[%clk 0:02:04]} 36. Rg4 {[%clk 0:00:09.7]}
1/2-1/2

[Event "Late-Titled-Tuesday-Blitz-March-12-2024"]
[Site "Chess.com"]
[Date "2024.03.12"]
[Round "8"]
[White "IranianCheetah"]
[Black "agus_k"]
[Result "0-1"]
[WhiteElo "2370"]
[BlackElo "2580"]
[TimeControl "180+1"]
[EndTime "15:25:08 PDT"]
[Termination "agus_k won by resignation"]

1. e4 {[%clk 0:03:00.9]} 1... c5 {[%clk 0:02:59.3]} 2. Nf3 {[%clk 0:03:01.2]}
2... d6 {[%clk 0:03:00.2]} 3. d4 {[%clk 0:03:01.8]} 3... cxd4 {[%clk 0:03:01.1]}
4. Nxd4 {[%clk 0:03:02.7]} 4... Nf6 {[%clk 0:03:01.4]} 5. Nc3 {[%clk 0:03:03.6]}
5... a6 {[%clk 0:03:02.2]} 6. h3 {[%clk 0:03:03.1]} 6... g6 {[%clk 0:03:02.2]}
7. Bg5 {[%clk 0:03:01.3]} 7... Bg7 {[%clk 0:03:02.5]} 8. Qd2 {[%clk 0:03:01.9]}
8... O-O {[%clk 0:03:02.1]} 9. Bh6 {[%clk 0:03:01.5]} 9... Nc6 {[%clk
0:02:59.9]} 10. Bxg7 {[%clk 0:03:00.1]} 10... Kxg7 {[%clk 0:03:00.1]} 11. g4
{[%clk 0:02:52.5]} 11... Qb6 {[%clk 0:02:44.2]} 12. Nb3 {[%clk 0:02:43.5]} 12...
Be6 {[%clk 0:02:42.2]} 13. O-O-O {[%clk 0:02:39.2]} 13... a5 {[%clk 0:02:40.7]}
14. g5 {[%clk 0:02:33.7]} 14... Nh5 {[%clk 0:02:38.4]} 15. Nd5 {[%clk
0:02:21.5]} 15... Bxd5 {[%clk 0:02:25.5]} 16. exd5 {[%clk 0:02:22.4]} 16... Nb4
{[%clk 0:02:16.5]} 17. a3 {[%clk 0:02:00.2]} 17... a4 {[%clk 0:02:16.2]} 18. Na1
{[%clk 0:01:29.2]} 18... Na6 {[%clk 0:02:16]} 19. Be2 {[%clk 0:01:18]} 19...
Qxf2 {[%clk 0:02:15.4]} 20. Qc3+ {[%clk 0:01:17.8]} 20... Kg8 {[%clk 0:02:14.1]}
21. Bxh5 {[%clk 0:01:18.3]} 21... gxh5 {[%clk 0:02:12.5]} 22. Kb1 {[%clk
0:01:07.9]} 22... Rac8 {[%clk 0:02:07.1]} 23. Qd3 {[%clk 0:01:04.8]} 23... Nc5
{[%clk 0:02:06.7]} 24. Qb5 {[%clk 0:00:58.8]} 24... Ne4 {[%clk 0:01:52.7]} 25.
Qxa4 {[%clk 0:00:53.4]} 25... Nd2+ {[%clk 0:01:51.2]} 26. Ka2 {[%clk 0:00:48.3]}
26... Rc4 {[%clk 0:01:49.7]} 27. Qb5 {[%clk 0:00:41.5]} 27... Rfc8 {[%clk
0:01:48.9]} 28. c3 {[%clk 0:00:29.7]} 28... Ne4 {[%clk 0:01:40.2]} 29. Rd3
{[%clk 0:00:20.1]} 29... Rxc3 {[%clk 0:01:36.2]} 30. Rxc3 {[%clk 0:00:19.5]}
30... Nxc3+ {[%clk 0:01:36.1]} 0-1

[Event "Late-Titled-Tuesday-Blitz-March-12-2024"]
[Site "Chess.com"]
[Date "2024.03.12"]
[Round "8"]
[White "Vesapesa"]
[Black "RianKapriaga"]
[Result "0-1"]
[WhiteElo "2202"]
[BlackElo "2285"]
[TimeControl "180+1"]
[EndTime "15:25:13 PDT"]
[Termination "RianKapriaga won by resignation"]

1. e4 {[%clk 0:03:00.9]} 1... c6 {[%clk 0:02:56.9]} 2. d4 {[%clk 0:03:00.3]}
2... d5 {[%clk 0:02:56.6]} 3. exd5 {[%clk 0:03:00.3]} 3... cxd5 {[%clk
0:02:56.5]} 4. Bd3 {[%clk 0:03:00.2]} 4... Nf6 {[%clk 0:02:56]} 5. c3 {[%clk
0:02:56.3]} 5... Nc6 {[%clk 0:02:55.9]} 6. Bf4 {[%clk 0:02:55.6]} 6... Bg4
{[%clk 0:02:54.5]} 7. Qb3 {[%clk 0:02:50.6]} 7... Qc8 {[%clk 0:02:53.9]} 8. Nd2
{[%clk 0:02:50]} 8... e6 {[%clk 0:02:53.9]} 9. Ngf3 {[%clk 0:02:50.1]} 9... Be7
{[%clk 0:02:54.2]} 10. O-O {[%clk 0:02:48.8]} 10... Bh5 {[%clk 0:02:54.3]} 11.
Rfe1 {[%clk 0:02:40.3]} 11... Bg6 {[%clk 0:02:54]} 12. Bf1 {[%clk 0:02:12.6]}
12... O-O {[%clk 0:02:51.6]} 13. Ne5 {[%clk 0:02:09.6]} 13... Nxe5 {[%clk
0:02:50.6]} 14. Bxe5 {[%clk 0:02:10.5]} 14... Nd7 {[%clk 0:02:45.6]} 15. Rac1
{[%clk 0:02:05.4]} 15... Nxe5 {[%clk 0:02:44.3]} 16. dxe5 {[%clk 0:02:06.3]}
16... Rd8 {[%clk 0:02:40.8]} 17. c4 {[%clk 0:02:05.1]} 17... Qd7 {[%clk
0:02:32]} 18. c5 {[%clk 0:01:51.6]} 18... Bg5 {[%clk 0:02:30.2]} 19. Rcd1 {[%clk
0:01:22.9]} 19... Rac8 {[%clk 0:02:26.1]} 20. Nf3 {[%clk 0:01:18.9]} 20... Be7
{[%clk 0:02:22]} 21. Bb5 {[%clk 0:01:14.6]} 21... Qc7 {[%clk 0:02:19.8]} 22. Rc1
{[%clk 0:01:07.7]} 22... Bxc5 {[%clk 0:02:19.3]} 23. Qd1 {[%clk 0:00:57]} 23...
Qb6 {[%clk 0:02:18.5]} 24. Qe2 {[%clk 0:00:51.8]} 24... a6 {[%clk 0:02:07.8]}
25. Ba4 {[%clk 0:00:51.6]} 25... d4 {[%clk 0:02:01.5]} 26. Qc4 {[%clk
0:00:37.8]} 26... h6 {[%clk 0:01:53.1]} 27. Bb3 {[%clk 0:00:27.4]} 27... d3
{[%clk 0:01:48]} 28. Qh4 {[%clk 0:00:07.3]} 28... d2 {[%clk 0:01:39.8]} 0-1